bitfinex/quotes_BTCUSD_20241124
["timestamp","ask_amount","ask_price","bid_price","bid_amount"]
[1732419260455,0.001719,98046.0,98040.0,0.0483]
[1732419261125,0.00159148,98046.0,98040.0,0.0483]
[1732419261331,0.00159148,98046.0,98036.0,0.07841572]
[1732419261559,0.00159148,98046.0,98036.0,0.23524716]
[1732419261801,0.00159148,98046.0,98037.0,0.00101987]
[1732419262493,0.00159148,98046.0,98036.0,0.23524716]
[1732419263683,0.00131292,98046.0,98036.0,0.23524716]
[1732419264124,0.00131292,98046.0,98019.0,0.08007306]
[1732419264125,0.00131292,98046.0,98020.0,0.07841572]
[1732419264362,0.00131292,98046.0,98036.0,0.15683144]
[1732419264559,0.00094792,98046.0,98032.0,0.0497]
[1732419265899,0.00101992,98045.0,98032.0,0.0497]
[1732419266146,0.00094792,98046.0,98026.0,0.0497]
[1732419267040,0.00094792,98046.0,98026.0,0.091711]
[1732419269708,0.00094792,98046.0,98027.0,0.00101998]
[1732419270214,0.00094792,98046.0,98026.0,0.091711]
[1732419271133,0.16852694,98044.0,98026.0,0.0925704]
[1732419271356,0.00101992,98043.0,98026.0,0.0925704]
[1732419274922,0.0791,98042.0,98026.0,0.0428704]
[1732419275149,0.00101992,98041.0,98026.0,0.0428704]
[1732419277480,0.0791,98042.0,98026.0,0.0428704]
[1732419278370,0.03334556,98042.0,98026.0,0.0428704]
[1732419282975,0.0477,98052.0,98026.0,0.0428704]
[1732419283176,0.0017186,98053.0,98029.0,0.1266]
[1732419283380,0.001719,98084.0,98033.0,0.0462]
[1732419283381,0.03566163,98066.0,98033.0,0.0462]
[1732419283590,0.001719,98084.0,98026.0,0.0428704]
[1732419283591,0.02828163,98067.0,98036.0,0.0804]
[1732419283758,0.02828163,98067.0,98026.0,0.0428704]
[1732419283759,0.02828163,98067.0,98039.0,0.0804]
[1732419283960,0.02828163,98067.0,98040.0,0.04721981]
[1732419285164,0.02828163,98067.0,98040.0,0.08801404]
[1732419285607,0.02828163,98067.0,98041.0,0.0804]
[1732419285819,0.02828163,98067.0,98042.0,0.00101981]
[1732419286462,0.02828163,98067.0,98043.0,0.1266]
[1732419286686,0.02828163,98067.0,98044.0,0.00101981]
[1732419290169,0.0791,98075.0,98044.0,0.00101981]
[1732419290386,0.00697163,98079.0,98046.0,0.0462]
[1732419290607,0.0477,98080.0,98040.0,0.04079423]
[1732419290608,0.00697163,98078.0,98048.0,0.0462]
[1732419290826,0.00697163,98080.0,98050.0,0.0462]
[1732419291038,0.00697163,98080.0,98040.0,0.11099423]
[1732419291039,0.00697163,98080.0,98052.0,0.0462]
[1732419291250,0.00697163,98080.0,98053.0,0.0814197]
[1732419291693,0.00697163,98078.0,98053.0,0.0814197]
[1732419291922,0.00697163,98078.0,98053.0,0.0804]
[1732419294631,0.00697163,98078.0,98054.0,0.0010197]
[1732419294855,0.00697163,98078.0,98053.0,0.0804]
[1732419296005,0.00697163,98078.0,98054.0,0.0010197]
[1732419298270,0.00697163,98081.0,98054.0,0.0010197]
[1732419298530,0.00697163,98081.0,98055.0,0.0499197]
[1732419298759,0.00697163,98081.0,98056.0,0.1309]
[1732419298986,0.00697163,98081.0,98057.0,0.00101967]
[1732419299220,0.00697163,98081.0,98058.0,0.00101967]
[1732419299345,0.00697163,98081.0,98057.0,0.00101967]
[1732419301088,0.00697163,98081.0,98056.0,0.1309]
[1732419304419,0.001719,98084.0,98056.0,0.1309]
[1732419304646,0.001719,98084.0,98058.0,0.0489]
[1732419304884,0.001719,98084.0,98059.0,0.00101967]
[1732419305309,0.001719,98084.0,98060.0,0.1309]
[1732419305939,0.0017182,98081.0,98060.0,0.1309]
[1732419308775,0.001719,98084.0,98060.0,0.1309]
[1732419308776,0.001719,98084.0,98062.0,0.0489]
[1732419309240,0.0805,98089.0,98062.0,0.0489]
[1732419309679,0.0805,98089.0,98063.0,0.00101959]
[1732419310124,0.0805,98089.0,98064.0,0.0489]
[1732419312567,0.0805,98089.0,98065.0,0.082]
[1732419313920,0.002,98091.0,98066.0,0.0489]
[1732419317758,0.002,98090.0,98066.0,0.0489]
[1732419319439,0.002,98089.0,98066.0,0.0489]
[1732419320790,0.002859,98091.0,98066.0,0.0489]
[1732419321003,0.002859,98091.0,98067.0,0.1216]
[1732419322310,0.002,98089.0,98067.0,0.1216]
[1732419322746,0.002,98089.0,98067.0,0.0764]
[1732419322960,0.002,98089.0,98068.0,0.0452]
[1732419324244,0.002,98089.0,98068.0,0.04621959]
[1732419331974,0.002,98089.0,98068.0,0.08686244]
[1732419333713,0.002,98089.0,98069.0,0.0452]
[1732419335095,0.002,98089.0,98057.0,0.001718]
[1732419335096,0.10431972,98088.0,98043.0,0.0966999]
[1732419335316,0.10431972,98088.0,98044.0,1.216446]
[1732419335552,0.10431972,98088.0,98045.0,0.96671]
[1732419335791,0.10431972,98088.0,98044.0,1.050457]
[1732419336358,0.10431972,98088.0,98044.0,1.00921]
[1732419336559,0.10431972,98088.0,98045.0,0.636245]
[1732419336774,0.10431972,98088.0,98046.0,0.00101958]
[1732419336963,0.10431972,98088.0,98047.0,0.729083]
[1732419337222,0.10431972,98088.0,98048.0,0.00101958]
[1732419337386,0.10431972,98088.0,98043.0,0.0966999]
[1732419337387,0.10431972,98088.0,98047.0,0.00101958]
[1732419337593,0.10431972,98088.0,98048.0,0.960727]
[1732419337794,0.10431972,98088.0,98049.0,0.225067]
[1732419337971,0.10431972,98088.0,98055.0,0.0829]
[1732419338177,0.10431972,98088.0,98057.0,0.0829]
[1732419338422,0.10431972,98088.0,98058.0,0.0474]
[1732419338629,0.10431972,98088.0,98059.0,0.04841958]
[1732419339069,0.10631972,98088.0,98059.0,0.04841958]
[1732419339541,0.10431972,98088.0,98059.0,0.04841958]
[1732419341077,0.129,98087.0,98059.0,0.04841958]
[1732419341301,0.002,98084.0,98059.0,0.04841958]
[1732419341520,0.00101962,98083.0,98059.0,0.09045711]
[1732419341743,0.1033001,98080.0,98059.0,0.09045711]
[1732419341977,0.1033001,98080.0,98059.0,0.04203753]
[1732419341978,0.129,98074.0,98059.0,0.04203753]
[1732419342195,0.00301962,98073.0,98059.0,0.04203753]
[1732419342422,0.00301962,98073.0,98053.0,0.0474]
[1732419342669,0.00301962,98073.0,98059.0,0.000859]
[1732419343120,0.002,98070.0,98059.0,0.000859]
[1732419344926,0.002,98070.0,98059.0,0.04169109]
[1732419345371,0.002,98071.0,98059.0,0.000859]
[1732419345587,0.00101962,98070.0,98059.0,0.000859]
[1732419345800,0.00101962,98072.0,98059.0,0.000859]
[1732419346025,0.00101962,98071.0,98059.0,0.000859]
[1732419346247,0.129,98074.0,98059.0,0.000859]
[1732419346248,0.002,98070.0,98059.0,0.000859]
[1732419346438,0.00101962,98069.0,98059.0,0.000859]
[1732419346725,0.002,98070.0,98059.0,0.000859]
[1732419350339,0.002,98070.0,98059.0,0.04232863]
[1732419350526,0.002,98070.0,98059.0,0.000859]
[1732419350981,0.002,98067.0,98059.0,0.000859]
[1732419351207,0.002,98069.0,98059.0,0.000859]
[1732419351865,0.002,98067.0,98059.0,0.000859]
[1732419352095,0.00101962,98073.0,98059.0,0.000859]
[1732419352096,0.002,98069.0,98059.0,0.000859]
[1732419352544,0.00301962,98073.0,98059.0,0.000859]
[1732419353011,0.00101962,98073.0,98059.0,0.04222256]
[1732419355042,0.002,98070.0,98059.0,0.04222256]
[1732419355278,0.00101962,98073.0,98059.0,0.04222256]
[1732419357597,0.00301962,98073.0,98059.0,0.04222256]
[1732419359306,0.00101962,98073.0,98059.0,0.04222256]
[1732419359534,0.00301962,98073.0,98059.0,0.04222256]
[1732419360136,0.00101962,98073.0,98059.0,0.04222256]
[1732419362359,0.002,98070.0,98059.0,0.04222256]
[1732419362830,0.00301962,98073.0,98059.0,0.04222256]
[1732419364192,0.00101962,98073.0,98059.0,0.04222256]
[1732419364882,0.002,98070.0,98059.0,0.04222256]
[1732419365840,0.002,98066.0,98059.0,0.04222256]
[1732419366978,0.002,98069.0,98059.0,0.04222256]
[1732419367198,0.002,98070.0,98059.0,0.04222256]
[1732419368784,0.002,98072.0,98059.0,0.04222256]
[1732419369027,0.00273862,98073.0,98059.0,0.04222256]
[1732419369028,0.002,98069.0,98059.0,0.04222256]
[1732419369212,0.002,98070.0,98059.0,0.04222256]
[1732419369474,0.00101962,98069.0,98059.0,0.04222256]
[1732419371840,0.00273862,98073.0,98059.0,0.04222256]
[1732419372067,0.00101962,98072.0,98059.0,0.04222256]
[1732419377404,0.002,98071.0,98059.0,0.04222256]
[1732419377628,0.00101962,98070.0,98059.0,0.04222256]
[1732419378089,0.00101962,98072.0,98059.0,0.04222256]
[1732419378303,0.00101962,98071.0,98059.0,0.04222256]
[1732419378552,0.00101962,98072.0,98059.0,0.04222256]
[1732419378783,0.00101962,98071.0,98059.0,0.04222256]
[1732419378995,0.003719,98073.0,98059.0,0.04222256]
[1732419378996,0.00101962,98072.0,98059.0,0.04222256]
[1732419379235,0.04681962,98071.0,98059.0,0.04222256]
[1732419379935,0.04681962,98071.0,98049.0,0.00101973]
[1732419380388,0.0783,98070.0,98040.0,0.1130498]
[1732419380661,0.00101962,98069.0,98040.0,0.1130498]
[1732419381341,0.0763,98067.0,98040.0,0.1130498]
[1732419381595,0.0458,98066.0,98040.0,0.1130498]
[1732419382971,0.0458,98066.0,98041.0,0.0473]
[1732419383197,0.001719,98073.0,98040.0,0.0428498]
[1732419383198,0.1221,98062.0,98040.0,0.0428498]
[1732419383411,0.04681962,98061.0,98040.0,0.0428498]
[1732419384536,0.0458,98061.0,98040.0,0.0428498]
[1732419385602,0.0458,98061.0,98041.0,0.03136537]
[1732419390567,0.0458,98061.0,98040.0,0.0428498]
[1732419394157,0.1221,98060.0,98040.0,0.0428498]
[1732419394737,0.1221,98060.0,98041.0,0.353464]
[1732419395961,0.1221,98060.0,98041.0,0.314476]
[1732419397060,0.0494,98059.0,98041.0,0.23315]
[1732419397289,0.0494,98057.0,98041.0,0.232775]
[1732419401773,0.0494,98057.0,98040.0,0.0428498]
[1732419401982,0.0494,98057.0,98041.0,0.191311]
[1732419402621,0.0494,98057.0,98042.0,0.0010198]
[1732419403079,0.0494,98057.0,98040.0,0.0428498]
[1732419403080,0.0494,98057.0,98041.0,0.0010198]
[1732419403292,0.04138609,98057.0,98041.0,0.5931038]
[1732419403493,0.04138609,98057.0,98042.0,0.592084]
[1732419403704,0.04138609,98057.0,98043.0,0.0010198]
[1732419404182,0.04138609,98057.0,98041.0,0.0010198]
[1732419404394,0.04138609,98057.0,98041.0,0.5347938]
[1732419404591,0.04138609,98057.0,98042.0,0.533774]
[1732419404829,0.04138609,98057.0,98043.0,0.0010198]
[1732419405278,0.04138609,98057.0,98041.0,0.0010198]
[1732419405509,0.04138609,98057.0,98041.0,0.3122568]
[1732419405742,0.04138609,98057.0,98042.0,0.242137]
[1732419405979,0.0831,98056.0,98043.0,0.0010198]
[1732419406425,0.0494,98055.0,98041.0,0.0010198]
[1732419407098,0.0831,98054.0,98041.0,0.0010198]
[1732419408996,0.0831,98052.0,98041.0,0.0010198]
[1732419409236,0.0494,98051.0,98041.0,0.0010198]
[1732419409667,0.0831,98050.0,98041.0,0.0010198]
[1732419410698,0.0831,98050.0,98040.0,0.0428498]
[1732419410699,0.0494,98049.0,98040.0,0.0428498]
[1732419410908,0.0831,98044.0,98040.0,0.0428498]
[1732419411135,0.1325,98043.0,98040.0,0.0428498]
[1732419411359,0.1325,98041.0,98040.0,0.0428498]
[1732419412517,0.002,98042.0,98004.0,0.83840735]
[1732419412518,0.002,98042.0,98005.0,0.00764739]
[1732419412726,0.0494,98038.0,98005.0,0.00833882]
[1732419412938,0.0831,98037.0,98006.0,1.44634842]
[1732419413151,0.0831,98037.0,98005.0,0.00764739]
[1732419413152,0.0831,98037.0,98007.0,1.42608041]
[1732419413362,0.0831,98037.0,98008.0,1.353253]
[1732419413585,0.0831,98037.0,98005.0,0.00764739]
[1732419413586,0.0831,98037.0,98006.0,1.66861542]
[1732419413806,0.0831,98037.0,98005.0,0.00764739]
[1732419413807,0.0831,98037.0,98007.0,1.66861941]
[1732419414014,0.0494,98036.0,98008.0,1.119023]
[1732419414259,0.0831,98035.0,98009.0,0.953037]
[1732419414472,0.0831,98035.0,98006.0,0.00069142]
[1732419414473,0.0494,98034.0,98007.0,1.384049]
[1732419414911,0.0494,98034.0,98006.0,1.561229]
[1732419415120,0.08,98033.0,98007.0,0.00012]
[1732419415334,0.08,98033.0,98007.0,1.322305]
[1732419415553,0.0482,98032.0,98007.0,0.0484]
[1732419415769,0.0482,98032.0,98008.0,1.113112]
[1732419416010,0.08,98031.0,98022.0,0.15677206]
[1732419417543,0.0482,98030.0,98022.0,0.15677206]
[1732419417757,0.08,98029.0,98022.0,0.15677206]
[1732419417964,0.0482,98028.0,98022.0,0.19894681]
[1732419419328,0.03589117,98029.0,98022.0,0.04217475]
[1732419419776,0.03589117,98029.0,98020.0,0.07838603]
[1732419420845,0.03589117,98029.0,98020.0,0.11888833]
[1732419422180,0.03321633,98029.0,98020.0,0.11888833]
[1732419422391,0.0482,98028.0,98020.0,0.11888833]
[1732419424432,0.01228966,98028.0,98018.0,0.23515809]
[1732419424646,0.01228966,98028.0,98020.0,0.0008594]
[1732419427670,0.00656627,98029.0,98020.0,0.0008594]
[1732419428153,0.00656627,98029.0,98021.0,0.00102001]
[1732419428643,0.00101962,98045.0,98021.0,0.00102001]
[1732419428888,0.00101962,98044.0,98035.0,0.15677206]
[1732419429120,0.19235261,98048.0,98035.0,0.15677206]
[1732419429121,0.00101962,98047.0,98035.0,0.15677206]
[1732419429375,0.00101962,98046.0,98035.0,0.15677206]
[1732419429614,0.19235261,98048.0,98035.0,0.15677206]
[1732419429615,0.00101962,98047.0,98035.0,0.15677206]
[1732419429875,0.00101962,98046.0,98035.0,0.15677206]
[1732419430104,0.00101962,98047.0,98035.0,0.15677206]
[1732419430337,0.00101962,98046.0,98035.0,0.15677206]
[1732419430566,0.19235261,98048.0,98035.0,0.15677206]
[1732419430567,0.049,98045.0,98035.0,0.15677206]
[1732419430818,0.00101962,98044.0,98035.0,0.15677206]
[1732419431303,0.049,98045.0,98035.0,0.15677206]
[1732419431544,0.049,98045.0,98020.0,0.00187941]
[1732419431545,0.049,98045.0,98034.0,0.15677206]
[1732419431776,0.0828,98044.0,98035.0,0.00101993]
[1732419432716,0.0828,98044.0,98034.0,0.15677206]
[1732419435116,0.07904134,98044.0,98034.0,0.15677206]
[1732419435948,0.04231761,98044.0,98034.0,0.15677206]
[1732419437193,0.04231761,98044.0,98034.0,0.19806457]
[1732419437625,0.04403681,98044.0,98034.0,0.19806457]
[1732419437781,0.04403681,98044.0,98035.0,0.00101993]
[1732419437980,0.04403681,98044.0,98034.0,0.19806457]
[1732419441251,0.00817681,98044.0,98035.0,0.00101993]
[1732419441476,0.00101962,98055.0,98035.0,0.00101993]
[1732419441678,0.00101962,98055.0,98045.0,0.07838603]
[1732419444458,0.1258,98054.0,98045.0,0.07838603]
[1732419444665,0.1258,98054.0,98040.0,0.07838603]
[1732419444666,0.00101962,98053.0,98035.0,0.00101993]
[1732419448983,0.13655125,98047.0,98001.0,0.06344875]
[1732419449182,0.0793,98046.0,98002.0,0.00051026]
[1732419449384,0.11265887,98049.0,98034.0,0.0008595]
[1732419449619,0.10554555,98051.0,98035.0,0.00051012]
[1732419449817,0.07626555,98051.0,98036.0,0.0005101]
[1732419450019,0.07626555,98051.0,98037.0,0.00051007]
[1732419450241,0.04635555,98051.0,98038.0,0.00051008]
[1732419450446,0.04635555,98051.0,98035.0,0.00051006]
[1732419450618,0.04635555,98051.0,98034.0,0.0008595]
[1732419450824,0.04310555,98051.0,98034.0,0.0008595]
[1732419451067,0.04310555,98051.0,98034.0,0.04196472]
[1732419451257,0.001719,98053.0,98035.0,0.00051006]
[1732419451615,0.04310555,98054.0,98036.0,0.0465]
[1732419451859,0.04310555,98054.0,98038.0,0.0465]
[1732419452033,0.04310555,98054.0,98039.0,2.09531604]
[1732419452243,0.04310555,98054.0,98040.0,1.734806]
[1732419452520,0.04310555,98054.0,98041.0,0.00051004]
[1732419452730,0.04310555,98054.0,98042.0,1.734806]
[1732419452930,0.04310555,98054.0,98043.0,0.00051004]
[1732419453138,0.04310555,98054.0,98043.0,1.18740804]
[1732419453336,0.04310555,98054.0,98044.0,0.92597]
[1732419453756,0.03259907,98054.0,98045.0,0.00051004]
[1732419453962,0.02533543,98054.0,98040.0,0.00051003]
[1732419454169,0.02533543,98054.0,98038.0,0.0465]
[1732419454170,0.02533543,98054.0,98041.0,0.00051003]
[1732419454368,0.02533543,98054.0,98038.0,0.0465]
[1732419454369,0.02533543,98054.0,98042.0,0.979443]
[1732419454564,0.02533543,98054.0,98043.0,0.00051003]
[1732419454768,0.01520789,98054.0,98044.0,0.93384]
[1732419454972,0.01520789,98056.0,98045.0,0.00051003]
[1732419455270,0.01520789,98054.0,98044.0,0.00051002]
[1732419455468,0.01520789,98054.0,98039.0,0.00051003]
[1732419455672,0.0475,98059.0,98040.0,0.0811]
[1732419455814,0.0475,98059.0,98041.0,1.59534999]
[1732419456015,0.0475,98059.0,98042.0,1.59484]
[1732419456228,0.0475,98059.0,98043.0,0.00050999]
[1732419456426,0.0475,98059.0,98044.0,1.29384]
[1732419456660,0.0475,98059.0,98045.0,0.00050999]
[1732419457106,0.0475,98059.0,98041.0,0.00050999]
[1732419457332,0.0475,98059.0,98041.0,1.34454999]
[1732419457528,0.0475,98059.0,98042.0,1.34205]
[1732419457743,0.0475,98059.0,98043.0,0.00050999]
[1732419458040,0.0475,98059.0,98044.0,1.30205]
[1732419458241,0.0475,98059.0,98045.0,0.00050999]
[1732419458666,0.0475,98059.0,98041.0,0.00050999]
[1732419458952,0.0475,98059.0,98041.0,0.98255999]
[1732419459133,0.0475,98059.0,98042.0,0.98205]
[1732419459357,0.0475,98059.0,98049.0,0.15666632]
[1732419460210,0.001719,98061.0,98049.0,0.15666632]
[1732419460642,0.001719,98061.0,98049.0,0.12800491]
[1732419467870,0.001719,98061.0,98050.0,0.0797]
[1732419468039,0.0519017,98072.0,98051.0,0.00101977]
[1732419468287,0.00076484,98071.0,98062.0,0.07833316]
[1732419468905,0.00076484,98071.0,98060.0,0.15666632]
[1732419471064,0.00127471,98071.0,98060.0,0.07833316]
[1732419471267,0.2,98070.0,98060.0,0.15666632]
[1732419471609,0.00127471,98069.0,98060.0,0.15666632]
[1732419472113,0.2,98062.0,98050.0,0.04102373]
[1732419472310,0.2,98062.0,98052.0,0.15666632]
[1732419472311,0.00127481,98061.0,98052.0,0.15666632]
[1732419472651,0.002,98058.0,98052.0,0.15666632]
[1732419472852,0.00327481,98061.0,98052.0,0.15666632]
[1732419473232,0.002,98060.0,98052.0,0.15666632]
[1732419473434,0.00127481,98059.0,98052.0,0.15666632]
[1732419475117,0.00127481,98061.0,98052.0,0.1978552]
[1732419475581,0.00327481,98061.0,98052.0,0.1978552]
[1732419477170,0.00127481,98061.0,98052.0,0.1978552]
[1732419480365,0.1314,98063.0,98052.0,0.1978552]
[1732419480366,0.00127481,98060.0,98052.0,0.1978552]
[1732419480578,0.00127481,98061.0,98052.0,0.1978552]
[1732419480993,0.00127481,98062.0,98052.0,0.1978552]
[1732419481408,0.20127481,98062.0,98052.0,0.1978552]
[1732419482450,0.00190833,98059.0,98052.0,0.1978552]
[1732419483278,0.00190833,98058.0,98052.0,0.1978552]
[1732419485290,0.2,98055.0,98052.0,0.04118888]
[1732419485493,0.00190833,98053.0,98050.0,0.0008592]
[1732419485693,0.00127489,98052.0,98050.0,0.0008592]
[1732419486492,0.00190833,98051.0,98050.0,0.0008592]
[1732419486692,0.00318324,98051.0,98050.0,0.0008592]
[1732419486900,0.08120833,98051.0,98050.0,0.0008592]
[1732419487188,0.32960833,98051.0,98050.0,0.04126091]
[1732419487563,0.32960833,98051.0,98050.0,0.0008592]
[1732419488007,0.00190833,98047.0,98042.0,0.04197897]
[1732419488224,0.12897497,98046.0,98042.0,0.04197897]
[1732419488429,0.12897497,98046.0,98040.0,0.07833316]
[1732419489503,0.00190833,98045.0,98040.0,0.07833316]
[1732419489743,0.00127498,98044.0,98040.0,0.07833316]
[1732419489949,0.00127498,98044.0,98037.0,0.07833316]
[1732419490172,0.00127498,98044.0,98040.0,0.04129312]
[1732419490388,0.00127498,98044.0,98037.0,0.07833316]
[1732419491785,0.00318331,98044.0,98037.0,0.07833316]
[1732419492239,0.00318331,98044.0,98037.0,0.11998556]
[1732419492463,0.00190833,98040.0,98037.0,0.11998556]
[1732419492914,0.00190833,98040.0,98037.0,0.0416524]
[1732419493320,0.00190833,98040.0,98030.0,0.15666632]
[1732419493754,0.00190833,98040.0,98030.0,0.19827742]
[1732419495520,0.00190833,98043.0,98030.0,0.19827742]
[1732419496853,0.00127498,98044.0,98030.0,0.19827742]
[1732419497063,0.00127498,98045.0,98030.0,0.19827742]
[1732419497268,0.00127498,98045.0,98036.0,0.15666632]
[1732419499454,0.1302,98042.0,98036.0,0.07919246]
[1732419499706,0.00127502,98041.0,98036.0,0.07919246]
[1732419500079,0.00127502,98041.0,98036.0,0.0008593]
[1732419500438,0.00127502,98041.0,98036.0,0.04254663]
[1732419500644,0.1302,98040.0,98036.0,0.04254663]
[1732419500824,0.081,98039.0,98036.0,0.04254663]
[1732419501060,0.0492,98038.0,98036.0,0.04254663]
[1732419501302,0.00127502,98037.0,98036.0,0.04254663]
[1732419502002,0.00318335,98037.0,98036.0,0.04254663]
[1732419503323,0.20318335,98037.0,98036.0,0.04254663]
[1732419503533,0.28418335,98037.0,98036.0,0.04254663]
[1732419503738,0.33210833,98037.0,98036.0,0.04254663]
[1732419505706,0.32770533,98037.0,98036.0,0.04254663]
[1732419515691,0.1228,98029.0,97998.0,0.33468839]
[1732419515913,0.00127521,98028.0,97999.0,0.645037]
[1732419516116,0.19750533,98027.0,97999.0,0.645037]
[1732419516345,0.19750533,98027.0,97998.0,0.37504461]
[1732419516346,0.07727524,98026.0,98000.0,0.251359]
[1732419516576,0.07727524,98026.0,97999.0,0.533198]
[1732419516781,0.0468,98025.0,97999.0,0.533198]
[1732419516986,0.00127524,98024.0,97999.0,0.457802]
[1732419517157,0.00127524,98024.0,98000.0,0.175963]
[1732419517295,0.00127524,98024.0,97998.0,0.18015622]
[1732419517296,0.00127524,98024.0,97999.0,0.26193]
[1732419518604,0.076,98022.0,98000.0,0.0484]
[1732419518880,0.00127528,98021.0,98000.0,0.0484]
[1732419519229,0.0468,98020.0,98000.0,0.0484]
[1732419519436,0.00127528,98019.0,98000.0,0.0484]
[1732419520130,0.076,98018.0,97998.0,0.04035622]
[1732419520337,0.00127533,98017.0,97995.0,0.0484]
[1732419520966,0.00127533,98017.0,97996.0,0.202438]
[1732419521343,0.00127533,98017.0,97996.0,0.157238]
[1732419521551,0.00127533,98017.0,97997.0,0.145106]
[1732419521757,0.00127533,98017.0,97996.0,0.143038]
[1732419523472,0.00127533,98017.0,97995.0,0.0484]
[1732419523953,0.00127533,98017.0,97995.0,0.08937108]
[1732419524429,0.00127533,98017.0,97996.0,0.180962]
[1732419526063,0.00127533,98017.0,97996.0,0.1818213]
[1732419526289,0.00127533,98017.0,97997.0,0.477881]
[1732419526729,0.00127533,98017.0,97996.0,0.0008593]
[1732419526730,0.0806,98012.0,97996.0,0.0008593]
[1732419526972,0.00127541,98011.0,97996.0,0.0008593]
[1732419528636,0.1274,98010.0,97996.0,0.0008593]
[1732419529057,0.1274,98010.0,97997.0,0.00076621]
[1732419529271,0.1274,98010.0,97996.0,0.0008593]
[1732419530075,0.0468,98009.0,97996.0,0.0008593]
[1732419530325,0.1274,98009.0,97996.0,0.0008593]
[1732419530700,0.1274,98009.0,97997.0,0.00076622]
[1732419538555,0.12386026,98009.0,97997.0,0.00076622]
[1732419539118,0.12386026,98009.0,97996.0,0.0008593]
[1732419539587,0.12386026,98009.0,97996.0,0.00162552]
[1732419539792,0.12386026,98009.0,97996.0,0.0008593]
[1732419540003,0.12386026,98009.0,97974.0,0.002]
[1732419540004,0.12386026,98009.0,97973.0,0.002]
[1732419540219,0.12386026,98009.0,97958.0,0.19990474]
[1732419540220,0.082,98008.0,97981.0,0.00016]
[1732419540448,0.082,98008.0,97982.0,0.91341723]
[1732419540449,0.0689236,98008.0,97982.0,0.91341723]
[1732419540625,0.0498,98007.0,97983.0,1.107923]
[1732419540828,0.0498,98007.0,97984.0,1.505478]
[1732419541083,0.0498,98007.0,97984.0,0.00076623]
[1732419541327,0.0498,98007.0,97985.0,1.563672]
[1732419541576,0.04331752,98007.0,97986.0,0.00012]
[1732419541814,0.03779107,98007.0,97986.0,1.45508]
[1732419542032,0.03779107,98007.0,97987.0,1.09098723]
[1732419542251,0.03779107,98007.0,97988.0,1.217243]
[1732419542459,0.03779107,98007.0,97989.0,0.00076623]
[1732419542667,0.03779107,98007.0,97990.0,1.105639]
[1732419542896,0.03779107,98007.0,97991.0,0.00076623]
[1732419543127,0.03779107,98007.0,97992.0,0.976743]
[1732419543335,0.03779107,98007.0,97993.0,0.00076623]
[1732419543550,0.03779107,98007.0,97993.0,0.65257523]
[1732419543783,0.00127541,98013.0,97994.0,0.651809]
[1732419543944,0.00127541,98013.0,97995.0,0.00076623]
[1732419544380,0.00127541,98013.0,97984.0,0.00076623]
[1732419544583,0.00127541,98013.0,97984.0,1.96870723]
[1732419544925,0.19750533,98014.0,97985.0,1.78235033]
[1732419545123,0.19750533,98014.0,97986.0,0.00012]
[1732419545241,0.19750533,98014.0,97986.0,0.567151]
[1732419545441,0.19750533,98014.0,97984.0,0.0413434]
[1732419545442,0.19750533,98014.0,97985.0,0.782105]
[1732419545646,0.19750533,98014.0,97986.0,0.722715]
[1732419545845,0.19750533,98014.0,97987.0,0.308208]
[1732419546107,0.19750533,98014.0,97985.0,1.041415]
[1732419546295,0.19750533,98014.0,97986.0,0.933615]
[1732419546494,0.19750533,98014.0,97987.0,0.558396]
[1732419546698,0.082,98012.0,97987.0,0.558396]
[1732419546939,0.082,98012.0,97988.0,0.00102033]
[1732419547144,0.082,98012.0,97985.0,1.517531]
[1732419547145,0.082,98012.0,97989.0,1.022587]
[1732419547377,0.082,98012.0,97990.0,0.00102033]
[1732419547752,0.082,98012.0,97991.0,0.375858]
[1732419548299,0.082,98012.0,97985.0,1.858688]
[1732419548512,0.082,98012.0,97985.0,1.858848]
[1732419548728,0.082,98012.0,97986.0,1.880218]
[1732419548934,0.082,98012.0,97985.0,1.98987]
[1732419550049,0.082,98012.0,97986.0,1.91586434]
[1732419550267,0.082,98012.0,97987.0,1.83352]
[1732419550525,0.082,98012.0,97988.0,0.00102034]
[1732419550735,0.082,98012.0,97989.0,0.1229]
[1732419550961,0.082,98012.0,97990.0,1.26202828]
[1732419551193,0.082,98012.0,97991.0,2.400236]
[1732419551423,0.04090067,98012.0,97992.0,0.00102027]
[1732419551693,0.04090067,98012.0,97984.0,0.1116434]
[1732419551694,0.001719,98012.0,97993.0,3.41318324]
[1732419551911,0.001719,98012.0,97994.0,2.938315]
[1732419552158,0.001719,98012.0,97995.0,2.8525662]
[1732419552371,0.001719,98012.0,97996.0,2.447784]
[1732419552597,0.001719,98012.0,97997.0,0.0010202]
[1732419552861,0.001719,98012.0,97998.0,2.446717]
[1732419553110,0.001719,98012.0,97999.0,0.0010202]
[1732419553384,0.001719,98012.0,98000.0,2.390378]
[1732419553584,0.0498,98020.0,97993.0,0.0773]
[1732419553585,0.04112053,98020.0,98001.0,0.0456]
[1732419554576,0.0785,98019.0,98001.0,0.0456]
[1732419555754,0.0785,98019.0,97998.0,0.04036848]
[1732419555967,0.0785,98019.0,97999.0,0.494898]
[1732419556592,0.0785,98019.0,98000.0,0.433837]
[1732419556826,0.1255,98016.0,97998.0,0.04036848]
[1732419557079,0.047,98015.0,97999.0,0.251611]
[1732419558242,0.1274,98007.0,97998.0,0.04036848]
[1732419559649,0.1274,98005.0,97998.0,0.04036848]
[1732419561813,0.19750533,98003.0,97998.0,0.04036848]
[1732419562036,0.08212318,98040.0,97998.0,0.04036848]
[1732419562037,0.19750533,97999.0,97998.0,0.04036848]
[1732419562263,0.32490533,97999.0,97998.0,0.04036848]
[1732419564237,0.32490533,97999.0,97998.0,0.04122788]
[1732419588078,0.32419302,97999.0,97998.0,0.04122788]
[1732419594372,0.27719302,97999.0,97973.0,0.0613548]
[1732419594690,0.0498,97998.0,97973.0,0.1024763]
[1732419596912,0.0498,97998.0,97974.0,0.15]
[1732419598582,0.27719302,97999.0,97973.0,0.0411215]
[1732419598583,0.19679302,97985.0,97973.0,0.0411215]
[1732419598787,0.27569302,97985.0,97968.0,0.15]
[1732419599774,0.27569302,97985.0,97967.0,0.0823]
[1732419600183,0.27569302,97985.0,97968.0,0.15]
[1732419603094,0.27569302,97985.0,97968.0,0.15102063]
[1732419606705,0.00127579,97984.0,97963.0,0.03959331]
[1732419606929,0.00127579,97984.0,97964.0,0.346126]